bitfinex/quotes_SOLUSD_20260213
["timestamp","ask_amount","ask_price","bid_price","bid_amount"]
[1770990341137,12.46776578,80.207,80.18,0.80946817]
[1770990341636,4.30672316,80.2,80.18,0.80946817]
[1770990342940,4.30783654,80.2,80.18,0.80946817]
[1770990343236,43.62349187,80.232,80.182,0.70946817]
[1770990343419,4.30783654,80.21,80.182,0.70946817]
[1770990343738,4.30783654,80.19,80.18,0.1]
[1770990343942,4.30783654,80.18,80.17,0.2]
[1770990345253,12.47209369,80.179,80.16,0.1]
[1770990347343,12.4724048,80.177,80.16,0.1]
[1770990347524,12.4724048,80.177,80.16,0.80946817]
[1770990348722,11.54654535,80.17,80.16,0.1]
[1770990349344,12.47364941,80.169,80.15,0.1]
[1770990350334,45.56,80.168,80.15,0.1]
[1770990351327,12.4739606,80.167,80.15,0.1]
[1770990352446,11.54654535,80.16,80.15,0.1]
[1770990353447,12.47520552,80.159,80.15,0.1]
[1770990354035,12.47520552,80.159,80.14,0.2]
[1770990354438,45.62,80.158,80.14,0.2]
[1770990354833,11.54654535,80.15,80.14,0.2]
[1770990355138,11.54654535,80.15,80.12,0.1]
[1770990355451,11.54654535,80.14,80.122,0.70946817]
[1770990356453,45.64,80.149,80.122,0.70946817]
[1770990356637,45.64,80.148,80.122,0.70946817]
[1770990357544,12.47707337,80.147,80.123,0.70946817]
[1770990357851,11.54654535,80.15,80.123,0.70946817]
[1770990358052,45.68,80.149,80.123,0.70946817]
[1770990358954,11.54654535,80.15,80.123,0.70946817]
[1770990359137,12.47707337,80.147,80.123,0.70946817]
[1770990359338,45.7,80.149,80.125,0.70946817]
[1770990359760,31.18121125,80.177,80.13,11.54654535]
[1770990360056,11.54654535,80.17,80.141,0.70946817]
[1770990360556,45.7,80.169,80.141,0.70946817]
[1770990360750,11.54654535,80.18,80.141,0.70946817]
[1770990360950,12.46991979,80.193,80.161,0.70946817]
[1770990361155,11.54654535,80.21,80.171,0.70946817]
[1770990361459,45.7,80.209,80.171,0.70946817]
[1770990361760,0.02561392,80.22,80.191,0.70946817]
[1770990361761,11.54654535,80.22,80.191,0.70946817]
[1770990362063,11.54654535,80.21,80.191,0.70946817]
[1770990362237,0.02662079,80.219,80.191,0.70946817]
[1770990362238,45.68,80.218,80.191,0.70946817]
[1770990362646,45.70761807,80.218,80.191,0.70946817]
[1770990362948,11.54654535,80.2,80.181,0.70946817]
[1770990363256,12.4689834,80.199,80.181,0.70946817]
[1770990363442,45.68,80.198,80.173,0.70946817]
[1770990363965,12.4689834,80.199,80.173,0.70946817]
[1770990364134,45.68,80.197,80.173,0.70946817]
[1770990365959,45.68,80.197,80.171,12.47322196]
[1770990365960,45.7,80.213,80.181,0.70946817]
[1770990366455,45.7,80.213,80.18,11.54654535]
[1770990366456,45.7,80.213,80.191,0.70946817]
[1770990367359,11.54654535,80.21,80.191,0.70946817]
[1770990367564,11.54654535,80.21,80.181,0.70946817]
[1770990367954,12.46742884,80.209,80.183,0.70946817]
[1770990370163,11.54654535,80.22,80.191,0.70946817]
[1770990370377,45.76,80.219,80.191,0.70946817]
[1770990371067,45.76,80.224,80.201,0.70946817]
[1770990372059,12.46276748,80.239,80.203,0.70946817]
[1770990372263,12.46276748,80.239,80.211,0.70946817]
[1770990372976,58.24220352,80.243,80.211,0.70946817]
[1770990373650,12.46027371,80.256,80.231,0.70946817]
[1770990373841,58.24027371,80.256,80.231,0.70946817]
[1770990374046,12.46027371,80.256,80.231,0.70946817]
[1770990374248,11.54654535,80.24,80.214,0.70946817]
[1770990374452,11.58442063,80.24,80.203,0.70946817]
[1770990374961,0.03875089,80.239,80.203,0.70946817]
[1770990375170,43.61153337,80.254,80.202,12.46851699]
[1770990375171,11.54654535,80.25,80.211,0.70946817]
[1770990375349,45.76,80.249,80.221,0.70946817]
[1770990376571,45.78,80.25,80.23,11.54654535]
[1770990376759,45.78,80.25,80.231,0.70946817]
[1770990377567,57.32654535,80.25,80.223,0.70946817]
[1770990377867,11.54654535,80.24,80.215,0.70946817]
[1770990378476,0.04128035,80.238,80.207,0.70946817]
[1770990378670,11.54654535,80.23,80.207,0.70946817]
[1770990378978,11.54654535,80.23,80.193,31.17474914]
[1770990378979,11.54654535,80.23,80.208,0.70946817]
[1770990379947,0.04128035,80.238,80.208,0.70946817]
[1770990380149,11.54654535,80.23,80.208,0.70946817]
[1770990380968,12.46432088,80.229,80.208,0.70946817]
[1770990381172,11.54654535,80.23,80.208,0.70946817]
[1770990381375,45.8,80.239,80.209,0.70946817]
[1770990381579,12.46313317,80.237,80.209,0.70946817]
[1770990382256,12.46313317,80.237,80.21,0.70946817]
[1770990382768,12.46389602,80.232,80.21,0.70946817]
[1770990383156,12.46307813,80.237,80.212,0.70946817]
[1770990383356,45.84,80.236,80.212,0.70946817]
[1770990383772,12.46198478,80.245,80.212,0.70946817]
[1770990383978,45.84,80.244,80.212,0.70946817]
[1770990384172,11.54654535,80.24,80.212,0.70946817]
[1770990384671,11.54654535,80.24,80.214,0.70946817]
[1770990384864,12.46170911,80.246,80.214,0.70946817]
[1770990385070,45.84,80.245,80.214,0.70946817]
[1770990385460,11.54654535,80.24,80.214,0.70946817]
[1770990385775,11.54654535,80.23,80.205,0.70946817]
[1770990386184,0.04683819,80.239,80.205,0.70946817]
[1770990386382,45.84,80.238,80.205,0.70946817]
[1770990386560,11.54654535,80.23,80.205,0.70946817]
[1770990386982,12.46432088,80.229,80.205,0.70946817]
[1770990387157,12.46432088,80.229,80.198,12.46912254]
[1770990387158,11.54654535,80.22,80.198,0.70946817]
[1770990387668,43.62512308,80.229,80.198,0.70946817]
[1770990388173,12.46432088,80.229,80.201,0.70946817]
[1770990388877,12.46334364,80.236,80.203,0.70946817]
[1770990389058,12.46334364,80.236,80.18,53.42]
[1770990389059,0.0498268,80.229,80.191,0.70946817]
[1770990389259,45.88,80.228,80.191,0.70946817]
[1770990389879,4.30402369,80.22,80.191,0.70946817]
[1770990390076,0.69437123,80.199,80.128,5.36086188]
[1770990390381,0.69437123,80.194,80.12,12.5811383]
[1770990390562,4.30402369,80.14,80.12,0.1]
[1770990390765,4.30402369,80.16,80.12,16.88529457]
[1770990391070,12.47103693,80.186,80.15,11.55006458]
[1770990391269,11.55006458,80.18,80.14,11.55006458]
[1770990391460,17.4,80.189,80.15,11.55006458]
[1770990391659,11.55006458,80.2,80.16,11.55006458]
[1770990392076,12.46916344,80.198,80.161,0.70143876]
[1770990392282,11.55006458,80.19,80.161,0.70143876]
[1770990392479,12.4661853,80.218,80.171,0.70143876]
[1770990392979,12.4652275,80.224,80.181,0.70143876]
[1770990393183,11.55006458,80.22,80.181,0.70143876]
[1770990393483,11.55006458,80.21,80.181,0.70143876]
[1770990393678,11.55006458,80.22,80.181,0.70143876]
[1770990394680,11.55006458,80.21,80.181,0.70143876]
[1770990394984,11.55006458,80.2,80.173,0.70143876]
[1770990395281,11.55006458,80.19,80.165,0.70143876]
[1770990395480,11.55006458,80.18,80.142,0.70143876]
[1770990395673,0.67733698,80.179,80.142,0.70143876]
[1770990395856,0.67733698,80.171,80.132,0.70143876]
[1770990396061,11.55006458,80.16,80.132,0.70143876]
[1770990396964,43.66321934,80.159,80.132,0.70143876]
[1770990397165,11.55006458,80.14,80.12,0.1]
[1770990397477,11.55006458,80.14,80.12,0.82040665]
[1770990398677,12.47520552,80.159,80.122,0.72040665]
[1770990398881,11.55006458,80.14,80.122,0.72040665]
[1770990399080,11.55006458,80.14,80.12,0.1]
[1770990399384,24.02837588,80.14,80.12,0.1]
[1770990399763,11.55006458,80.13,80.12,0.1]
[1770990399962,24.02837588,80.14,80.12,0.1]
[1770990400197,0.67023678,80.129,80.11,0.1]
[1770990400379,11.55006458,80.13,80.11,0.82040665]
[1770990400685,31.19175156,80.15,80.11,0.82040665]
[1770990400984,11.55006458,80.15,80.112,0.72040665]
[1770990401285,0.67110268,80.139,80.112,0.72040665]
[1770990401484,11.55006458,80.12,80.11,0.1]
[1770990401685,11.55006458,80.12,80.091,0.72040665]
[1770990402289,11.55006458,80.12,80.091,13.20620405]
[1770990402474,0.67195292,80.128,80.092,0.72040665]
[1770990402674,11.55006458,80.12,80.092,0.72040665]
[1770990402887,11.56504076,80.12,80.092,0.72040665]
[1770990403086,11.56504076,80.13,80.092,0.72040665]
[1770990403266,0.67280106,80.136,80.094,0.72040665]
[1770990403467,11.56504076,80.12,80.094,0.72040665]
[1770990404372,11.56504076,80.11,80.09,0.2]
[1770990406190,11.56504076,80.1,80.09,0.2]
[1770990406380,11.56504076,80.1,80.076,0.72040665]
[1770990407281,11.56504076,80.1,80.069,12.48916423]
[1770990407467,0.67528084,80.102,80.067,0.72040665]
[1770990407468,11.56504076,80.09,80.067,0.72040665]
[1770990407886,12.4861092,80.089,80.06,12.69054097]
[1770990408078,12.4861092,80.089,80.061,0.72040665]
[1770990408782,0.6776867,80.088,80.061,0.72040665]
[1770990408970,11.56504076,80.08,80.06,0.2]
[1770990409469,11.56504076,80.08,80.06,0.92040665]
[1770990409686,0.6776867,80.088,80.061,13.21088266]
[1770990409890,12.4861092,80.089,80.061,13.21088266]
[1770990409891,11.56504076,80.1,80.062,0.72040665]
[1770990410187,11.56504076,80.09,80.062,0.72040665]
[1770990410490,11.56504076,80.1,80.062,0.72040665]
[1770990410674,11.56504076,80.11,80.071,0.72040665]
[1770990411195,11.56504076,80.11,80.061,43.71666604]
[1770990411196,11.56504076,80.12,80.081,0.72040665]
[1770990411989,12.48143386,80.119,80.083,0.72040665]
[1770990412191,11.56504076,80.12,80.083,0.72040665]
[1770990412493,12.4805646,80.125,80.091,0.72040665]
[1770990412680,11.56504076,80.12,80.091,0.72040665]
[1770990413294,11.56504076,80.14,80.101,0.72040665]
[1770990413673,12.47795682,80.142,80.101,0.72040665]
[1770990413873,46.24,80.15,80.112,12.48252446]
[1770990414089,12.47676203,80.149,80.113,0.72040665]
[1770990414294,0.68150448,80.129,80.092,0.72040665]
[1770990414475,11.56504076,80.12,80.092,0.72040665]
[1770990414994,11.56504076,80.12,80.084,0.72040665]
[1770990415179,11.56504076,80.13,80.091,0.72040665]
[1770990416098,11.56504076,80.14,80.101,0.72040665]
[1770990416471,46.28,80.145,80.101,0.72040665]
[1770990416792,0.6829851,80.158,80.12,11.56504076]
[1770990417102,0.68370708,80.149,80.111,0.72040665]
[1770990417874,0.68370708,80.149,80.092,43.69974529]
[1770990417875,11.56504076,80.13,80.096,0.72040665]
[1770990418071,11.56504076,80.13,80.098,0.72040665]
[1770990418275,0.68443009,80.139,80.101,0.72040665]
[1770990418498,11.56504076,80.14,80.101,0.72040665]
[1770990418708,12.47730539,80.146,80.101,0.72040665]
[1770990418878,11.56504076,80.14,80.101,0.72040665]
[1770990419386,12.47730539,80.146,80.101,0.72040665]
[1770990419583,0.68443009,80.149,80.101,0.72040665]
[1770990419788,24.0416522,80.15,80.111,0.72040665]
[1770990420115,2.47215037,99.404,80.143,0.72040665]
[1770990420116,0.6858352,80.197,80.143,0.72040665]
[1770990420284,11.56504076,80.19,80.151,0.72040665]
[1770990420482,11.56504076,80.18,80.151,0.72040665]
[1770990421197,0.6858352,80.189,80.151,0.72040665]
[1770990421784,12.25291427,80.18,80.151,0.72040665]
[1770990422106,12.4689834,80.199,80.153,0.72487765]
[1770990422281,11.56504076,80.21,80.161,0.72487765]
[1770990422482,11.56504076,80.2,80.161,0.72487765]
[1770990422693,0.68787351,80.199,80.161,0.72487765]
[1770990423399,4.61729252,80.228,80.161,0.72487765]
[1770990423400,0.68854224,80.189,80.161,0.72487765]
[1770990423615,0.68854224,80.199,80.161,0.72487765]
[1770990423780,11.56504076,80.2,80.161,0.72487765]
[1770990424101,12.4689834,80.199,80.163,0.72487765]
[1770990424300,0.68920373,80.198,80.163,0.72487765]
[1770990424495,0.68920373,80.189,80.156,12.47553467]
[1770990424683,0.68920373,80.179,80.151,12.47639488]
[1770990424997,0.56435373,80.179,80.151,12.47639488]
[1770990425500,0.56435373,80.179,80.145,0.72487765]
[1770990425880,46.52,80.186,80.132,0.72487765]
[1770990425881,11.56504076,80.16,80.132,0.72487765]
[1770990426204,11.56504076,80.15,80.123,12.48081075]
[1770990426501,11.56504076,80.15,80.122,0.72487765]
[1770990426677,12.47676203,80.149,80.122,0.72487765]
[1770990426877,12.47676203,80.149,80.123,0.72487765]
[1770990427504,11.56504076,80.16,80.123,0.72487765]
[1770990427802,24.04009066,80.16,80.124,0.72487765]
[1770990428192,24.04009066,80.16,80.126,0.72487765]
[1770990428587,11.56504076,80.15,80.126,0.72487765]
[1770990428799,0.56717927,80.149,80.117,0.72487765]
[1770990429100,0.56717927,80.149,80.118,12.48158965]
[1770990429405,11.56504076,80.15,80.119,0.72487765]
[1770990429598,0.56788982,80.149,80.119,0.72487765]
[1770990429799,11.56504076,80.15,80.113,0.72487765]
[1770990430195,12.47676203,80.149,80.115,0.72487765]
[1770990430986,11.56504076,80.17,80.131,0.72487765]
[1770990431209,13.04150534,80.179,80.141,0.72487765]
[1770990431516,12.47222884,80.179,80.141,0.72487765]
[1770990431813,11.56504076,80.17,80.141,0.72487765]
[1770990432105,11.56504076,80.16,80.131,0.72487765]
[1770990432403,11.56504076,80.14,80.106,0.72487765]
[1770990433405,0.56995923,80.149,80.111,0.72487765]
[1770990434501,0.57128775,80.147,80.113,0.72487765]
[1770990434711,11.56504076,80.14,80.113,0.72487765]
[1770990435616,12.4769177,80.148,80.113,0.72487765]
[1770990436402,0.57261949,80.138,80.091,0.72487765]
[1770990436602,11.56504076,80.13,80.093,0.72487765]
[1770990436812,11.56504076,80.15,80.111,0.72487765]
[1770990437013,12.47736831,80.146,80.111,0.72487765]
[1770990437393,24.04168214,80.15,80.111,0.72487765]
[1770990437810,11.56504076,80.16,80.12,11.56504076]
[1770990437996,0.57390709,80.169,80.131,0.72487765]
[1770990438415,11.56504076,80.16,80.131,0.72487765]
[1770990438699,11.56504076,80.16,80.12,11.56504076]
[1770990438700,0.57390709,80.149,80.106,0.72487765]
[1770990438900,11.56504076,80.15,80.111,0.72487765]
[1770990439105,0.57453996,80.149,80.111,0.72487765]
[1770990439609,11.56504076,80.14,80.111,0.72487765]
[1770990439811,46.5,80.148,80.111,0.72487765]
[1770990440012,11.56504076,80.14,80.111,0.72487765]
[1770990440516,6.21729252,80.168,80.11,0.72487765]
[1770990440517,0.57516399,80.156,80.11,0.72487765]
[1770990440813,12.14020475,80.14,80.11,0.72487765]
[1770990441702,0.57516399,80.14,80.11,0.72487765]
[1770990442106,0.57516399,80.14,80.077,108.31729252]
[1770990442107,0.5763893,80.129,80.094,0.72487765]
[1770990442703,0.5763893,80.127,80.095,0.72487765]
[1770990443120,12.48003194,80.128,80.095,0.72487765]
[1770990443501,11.56504076,80.14,80.101,0.72487765]
[1770990443812,12.47769611,80.143,80.101,0.72487765]
[1770990444017,12.47618897,80.153,80.121,0.72487765]
[1770990444222,11.56504076,80.15,80.121,0.72487765]
[1770990444418,0.57758712,80.149,80.111,0.72487765]
[1770990444723,13.05590604,80.139,80.111,0.72487765]
[1770990445304,11.56504076,80.13,80.102,0.72487765]
[1770990445620,12.14321571,80.13,80.102,0.72487765]
[1770990446332,0.57817495,80.13,80.092,0.72487765]
[1770990446626,12.48074645,80.124,80.094,0.72487765]
[1770990447306,12.48011868,80.128,80.094,0.72487765]
[1770990447502,12.47878606,80.136,80.101,0.72487765]
[1770990448221,11.56504076,80.15,80.111,0.72487765]
[1770990448404,11.56504076,80.15,80.093,43.69919967]
[1770990448405,0.57991478,80.162,80.121,0.72487765]
[1770990448718,13.0551203,80.159,80.122,0.72487765]
[1770990449023,12.47520552,80.159,80.122,0.72487765]
[1770990449700,13.05622303,80.159,80.122,0.72487765]
[1770990449897,0.58101751,80.149,80.106,0.72487765]
[1770990450116,0.58101751,80.149,80.105,12.48361525]
[1770990450117,0.58101751,80.158,80.111,0.72487765]
[1770990450325,11.56504076,80.15,80.111,0.72487765]
[1770990450622,0.58101751,80.149,80.111,0.72487765]
[1770990451004,12.4769177,80.148,80.113,0.68314776]
[1770990451217,13.05833529,80.148,80.113,0.68314776]
[1770990451614,12.4769177,80.148,80.113,0.68314776]
[1770990452509,0.58161128,80.139,80.113,0.68314776]
[1770990452702,11.56504076,80.14,80.113,0.68314776]
[1770990453425,43.67411622,80.139,80.113,0.68314776]
[1770990454626,43.67411622,80.139,80.104,53.46]
[1770990455424,44.37269599,80.139,80.104,53.46]
[1770990456514,0.74043001,80.136,80.105,0.69309823]
[1770990457527,43.6752062,80.137,80.105,0.69309823]
[1770990458120,0.74043001,80.136,80.104,53.46]
[1770990458422,0.74043001,80.136,80.105,0.69309823]
[1770990458724,0.74043001,80.134,80.105,0.69309823]
[1770990460323,43.67629624,80.135,80.105,0.69309823]
[1770990460516,12.47707337,80.147,80.121,0.69309823]
[1770990461407,47.36043001,80.167,80.131,0.69309823]
[1770990461408,12.47582808,80.155,80.131,0.69309823]
[1770990462624,43.66539828,80.155,80.131,0.69309823]
[1770990462826,0.74043001,80.159,80.123,54.07309823]
[1770990463021,12.29293757,80.15,80.124,0.69309823]
[1770990463825,11.55250756,80.15,80.124,0.69309823]
[1770990464128,0.74043001,80.149,80.124,0.69309823]
[1770990464329,0.74043001,80.149,80.111,12.48260726]
[1770990464330,0.74043001,80.149,80.111,0.69309823]
[1770990464703,49.89251441,80.173,80.111,0.69309823]
[1770990464905,0.74043001,80.164,80.131,0.69309823]
[1770990465204,0.74043001,80.149,80.12,0.69309823]
[1770990465525,0.74043001,80.139,80.104,0.69309823]
[1770990465827,0.74043001,80.129,80.095,0.69309823]
[1770990466019,11.55250756,80.16,80.07,11.55250756]
[1770990466020,11.55250756,80.11,80.07,11.55250756]
[1770990466202,11.55250756,80.11,80.062,12.49032]
[1770990466203,0.74043001,80.119,80.062,43.71612]
[1770990466408,0.74043001,80.099,80.041,31.2337495]
[1770990466615,0.74043001,80.099,80.05,11.75250756]
[1770990466809,0.74043001,80.117,80.07,11.55250756]
[1770990467109,12.29293757,80.11,80.07,11.55250756]
[1770990467802,0.74043001,80.109,80.07,11.55250756]
[1770990468022,0.74043001,80.109,80.071,0.69309823]
[1770990468428,0.74043001,80.109,80.081,0.69309823]
[1770990468927,12.48314775,80.108,80.081,0.69309823]
[1770990470014,13.22357776,80.108,80.081,0.69309823]
[1770990470333,0.74043001,80.099,80.062,0.69309823]
[1770990470625,11.55250756,80.1,80.062,0.69309823]
[1770990470803,13.22513624,80.098,80.064,0.69309823]
[1770990471007,0.74043001,80.097,80.064,0.69309823]
[1770990471416,12.48470623,80.098,80.064,0.69309823]
[1770990472511,12.4841632,80.102,80.066,0.69309823]
[1770990473634,12.48347724,80.106,80.071,0.69309823]
[1770990474031,12.48158965,80.118,80.08,11.55250756]
[1770990474238,12.48158965,80.118,80.073,0.14216157]
[1770990474239,12.48158965,80.118,80.081,0.69309823]
[1770990474425,0.74043001,80.117,80.081,0.69309823]
[1770990474619,0.74043001,80.115,80.081,0.69309823]
[1770990475137,11.55250756,80.1,80.069,0.69309823]
[1770990475738,0.74043001,80.103,80.069,0.69309823]
[1770990476240,0.74043001,80.099,80.069,0.69309823]
[1770990476736,0.74043001,80.097,80.069,0.69309823]
[1770990477036,0.74043001,80.097,80.06,0.2]
[1770990477037,0.74043001,80.097,80.061,0.69309823]
[1770990477631,0.74043001,80.105,80.062,0.14216157]
[1770990477934,0.74043001,80.109,80.071,0.69309823]
[1770990478324,11.55250756,80.1,80.071,0.69309823]
[1770990478716,12.29293757,80.1,80.071,0.69309823]
[1770990479129,13.22498037,80.099,80.071,0.69309823]
[1770990479532,12.48455036,80.099,80.073,0.69309823]
[1770990479743,11.55250756,80.11,80.073,0.69309823]
[1770990480037,31.20547882,80.115,80.073,0.69309823]
[1770990480038,12.48299192,80.109,80.073,0.69309823]
[1770990480619,12.48143386,80.119,80.08,11.55250756]
[1770990480851,11.55250756,80.13,80.074,0.14216157]
[1770990480852,12.47987619,80.129,80.091,0.71749787]
[1770990481142,0.70174406,80.133,80.095,0.71749787]
[1770990481339,12.47913757,80.134,80.101,0.71749787]
[1770990481939,13.17944017,80.143,80.101,0.71749787]
[1770990482332,31.19319392,80.146,80.094,43.69865407]
[1770990482333,12.47718937,80.147,80.111,0.71749787]
[1770990482539,0.70174406,80.139,80.101,0.71749787]
[1770990483039,0.70174406,80.139,80.09,11.55250756]
[1770990483040,0.70174406,80.109,80.076,12.48813627]
[1770990483530,11.55250756,80.1,80.069,12.48908846]
[1770990483723,0.70174406,80.099,80.069,12.48908846]
[1770990483926,0.70174406,80.099,80.068,53.04]
[1770990485037,90.27101712,80.108,80.068,53.04]
[1770990485038,0.70174406,80.107,80.069,0.71749787]
[1770990485425,0.70174406,80.105,80.07,0.71749787]
[1770990485626,0.70174406,80.099,80.068,53.04]
[1770990486144,12.25425162,80.08,80.06,0.2]
[1770990486524,0.70174406,80.079,80.06,0.2]
[1770990487946,12.48726585,80.082,80.06,0.2]
[1770990488248,11.55250756,80.08,80.06,0.2]
[1770990488841,12.25425162,80.08,80.06,0.2]
[1770990489233,0.70174406,80.079,80.06,0.2]
[1770990489624,0.70174406,80.077,80.06,0.2]
[1770990490043,0.70174406,80.097,80.062,0.71749787]
[1770990490342,13.18676203,80.096,80.062,0.71749787]
[1770990490547,0.70174406,80.095,80.062,0.71749787]
[1770990491344,12.48408246,80.103,80.071,0.71749787]
[1770990491655,0.70174406,80.099,80.061,0.71749787]
[1770990492536,0.70174406,80.089,80.06,0.2]
[1770990493535,0.70174406,80.087,80.06,0.2]
[1770990494828,0.70174406,80.079,80.06,0.2]
[1770990495025,0.70174406,80.079,80.05,0.2]
[1770990495225,0.70174406,80.069,80.031,0.71749787]
[1770990495442,0.70174406,80.069,80.032,0.71749787]
[1770990495848,12.48938402,80.068,80.034,0.71749787]
[1770990496229,12.48938402,80.068,80.04,0.71749787]
[1770990496724,0.70174406,80.067,80.033,12.49484587]
[1770990496928,0.70174406,80.067,80.034,0.71749787]
[1770990497352,12.48938402,80.068,80.034,0.71749787]
[1770990497652,12.48869831,80.073,80.034,0.71749787]
[1770990497850,13.19044237,80.073,80.036,0.71749787]
[1770990498541,12.4857974,80.091,80.051,0.71749787]
[1770990498746,12.25425162,80.09,80.051,0.71749787]
[1770990498935,0.70174406,80.089,80.051,0.71749787]
[1770990500053,0.70174406,80.079,80.044,0.71749787]
[1770990500252,0.70174406,80.079,80.047,13.21010852]
[1770990500850,0.70174406,80.079,80.048,0.71749787]
[1770990501046,0.70174406,80.079,80.047,12.49261065]
[1770990501047,12.48544272,80.094,80.051,0.71749787]
[1770990501356,12.4848621,80.097,80.061,0.71749787]
[1770990501930,12.48299192,80.109,80.063,0.71749787]
[1770990502133,12.48163289,80.118,80.081,0.71749787]
[1770990502732,0.70174406,80.117,80.081,0.71749787]
[1770990503354,0.70174406,80.109,80.075,0.71749787]
[1770990503733,0.70174406,80.109,80.074,0.71749787]
[1770990504149,0.70174406,80.107,80.073,53.08]
[1770990504456,0.70174406,80.099,80.073,53.08]
[1770990504636,0.70174406,80.099,80.055,0.71749787]
[1770990504948,11.55250756,80.09,80.057,12.49102716]
[1770990505249,0.70174406,80.089,80.047,12.49259883]
[1770990505454,0.70174406,80.098,80.051,0.71749787]
[1770990505856,0.70174406,80.089,80.051,0.71749787]
[1770990506035,0.70174406,80.089,80.047,12.49259883]
[1770990507058,0.70174406,80.087,80.044,0.71749787]
[1770990508544,0.70174406,80.087,80.042,53.08]
[1770990508545,13.18832098,80.086,80.046,0.71749787]
[1770990509153,0.70174406,80.085,80.046,0.71749787]
[1770990509659,0.70174406,80.079,80.045,12.4929727]
[1770990509855,0.70174406,80.079,80.042,53.08]
[1770990510247,0.70174406,80.079,80.043,0.71749787]
[1770990510449,11.55250756,80.08,80.043,0.71749787]
[1770990510450,0.70174406,80.077,80.044,0.71749787]
[1770990511053,0.70174406,80.077,80.043,12.49328485]
[1770990511560,0.70174406,80.077,80.044,0.75480361]
[1770990511937,0.70174406,80.077,80.036,53.14]
[1770990512142,0.70174406,80.077,80.037,12.49422142]
[1770990512374,0.70174406,80.077,80.037,65.65422142]
[1770990512550,0.77980123,80.069,80.035,0.75480361]
[1770990513365,0.77980123,80.069,80.037,0.75480361]
[1770990514673,0.77980123,80.067,80.03,0.1]
[1770990515267,0.77980123,80.067,80.031,0.75480361]
[1770990515764,0.77980123,80.059,80.03,0.1]
[1770990515983,0.77980123,80.059,80.031,0.75480361]
[1770990516150,43.71284407,80.068,80.031,0.75480361]
[1770990516151,0.77085447,80.067,80.031,0.75480361]
[1770990516673,0.77085447,80.059,80.03,0.1]
[1770990517065,0.77085447,80.059,80.03,12.59528614]
[1770990517871,11.55250756,80.05,80.03,0.1]
[1770990518058,0.77085447,80.051,80.03,0.1]
[1770990518260,0.77085447,80.059,80.031,13.2686286]
[1770990519073,0.77085447,80.039,80.02,0.1]
[1770990519578,0.77085447,80.054,80.021,0.77347048]
[1770990520171,0.77085447,80.049,80.021,0.77347048]
[1770990521067,0.77085447,80.049,80.023,0.77347048]
[1770990521273,0.77085447,80.059,80.023,0.77347048]
[1770990521979,0.77085447,80.075,80.031,0.77347048]
[1770990522179,0.77085447,80.075,80.041,0.77347048]
[1770990523286,0.77085447,80.093,80.061,0.77347048]
[1770990524065,12.4844806,80.1,80.063,0.77347048]
[1770990524981,0.77085447,80.099,80.063,0.77347048]
[1770990525164,0.77085447,80.089,80.062,53.12]
[1770990525369,0.77085447,80.079,80.057,12.49107442]
[1770990525677,0.77085447,80.069,80.038,12.49391911]
[1770990526078,0.77085447,80.069,80.039,0.77347048]
[1770990526284,0.77085447,80.069,80.038,12.49391911]
[1770990527177,0.77085447,80.067,80.032,12.49500199]
[1770990527375,0.77085447,80.075,80.033,0.77347048]
[1770990529281,12.48844818,80.074,80.035,0.77347048]
[1770990529474,0.77085447,80.073,80.035,0.77347048]
[1770990529676,0.77085447,80.069,80.035,0.77347048]
[1770990529980,0.77085447,80.059,80.034,53.16]
[1770990530568,0.77085447,80.059,80.029,12.49535802]
[1770990530769,0.77085447,80.059,80.021,12.49671961]
[1770990531989,0.77085447,80.057,80.022,0.77347048]
[1770990532182,12.48964661,80.067,80.031,0.77347048]
[1770990532389,0.77085447,80.066,80.031,0.77347048]
[1770990532891,0.77085447,80.084,80.051,0.77347048]
[1770990533086,12.48656407,80.087,80.053,0.77347048]
[1770990533273,0.77085447,80.086,80.053,0.77347048]
[1770990533467,0.77085447,80.086,80.029,5.36086188]
[1770990533468,0.77085447,80.077,80.033,0.77347048]
[1770990533677,0.77085447,80.079,80.041,0.77347048]
[1770990533891,44.47347108,80.087,80.043,0.77347048]
[1770990534091,0.77085447,80.094,80.051,0.77347048]
[1770990534291,12.48548562,80.093,80.061,0.77347048]
[1770990534677,13.25634009,80.093,80.061,0.77347048]
[1770990534877,0.77085447,80.092,80.061,0.77347048]
[1770990535581,0.77085447,80.105,80.071,0.77347048]
[1770990535975,46.74,80.121,80.07,11.56786696]
[1770990535976,0.77085447,80.113,80.073,0.77347048]
[1770990536294,0.77085447,80.113,80.081,0.77347048]
[1770990537093,12.48119964,80.121,80.081,0.77347048]
[1770990537396,0.77085447,80.115,80.081,0.77347048]
[1770990537773,0.77085447,80.129,80.083,0.77347048]
[1770990537976,0.77085447,80.129,80.093,0.77347048]
[1770990538176,0.77085447,80.127,80.093,0.77347048]
[1770990538792,0.77085447,80.136,80.101,0.77347048]
[1770990538984,0.77085447,80.136,80.111,0.77347048]
[1770990539181,0.77085447,80.134,80.093,0.77347048]